bitfinex/quotes_BTCUSD_20240905
["timestamp","ask_amount","ask_price","bid_price","bid_amount"]
[1725503128940,0.98612194,57963.0,57962.0,0.003632]
[1725503129171,1.25633656,57963.0,57962.0,0.003632]
[1725503129472,1.25633656,57963.0,57962.0,0.0231684]
[1725503129927,0.98612194,57963.0,57962.0,0.0231684]
[1725503131340,0.74458894,57963.0,57962.0,0.0231684]
[1725503132491,0.77164426,57963.0,57962.0,0.0231684]
[1725503133635,1.01317726,57963.0,57962.0,0.0231684]
[1725503134092,1.07062194,57963.0,57962.0,0.0231684]
[1725503134322,1.07062194,57963.0,57962.0,0.003632]
[1725503135493,1.09362194,57963.0,57962.0,0.003632]
[1725503136421,1.33715494,57963.0,57962.0,0.003632]
[1725503137113,1.33515494,57963.0,57962.0,0.003632]
[1725503138244,1.36221459,57963.0,57962.0,0.003632]
[1725503141833,1.63242921,57963.0,57962.0,0.003632]
[1725503142044,1.60536956,57963.0,57962.0,0.003632]
[1725503142493,1.25633656,57963.0,57962.0,0.003632]
[1725503142713,1.25633656,57963.0,57962.0,0.0148584]
[1725503143604,0.98612194,57963.0,57962.0,0.0148584]
[1725503143823,1.25633656,57963.0,57962.0,0.0148584]
[1725503144268,1.27933656,57963.0,57962.0,0.0148584]
[1725503144972,1.27933656,57963.0,57962.0,0.003632]
[1725503145431,1.30639469,57963.0,57962.0,0.003632]
[1725503148774,1.30639469,57963.0,57962.0,0.086732]
[1725503149247,1.03618007,57963.0,57962.0,0.086732]
[1725503149470,1.30639469,57963.0,57962.0,0.086732]
[1725503149934,1.30639469,57963.0,57962.0,0.1062684]
[1725503150368,1.27933656,57963.0,57962.0,0.1062684]
[1725503151131,0.013936,57963.0,57962.0,0.24379882]
[1725503151359,0.013936,57963.0,57962.0,0.65275326]
[1725503151590,0.013936,57963.0,57962.0,0.70584206]
[1725503151821,0.013936,57963.0,57962.0,0.67997083]
[1725503152051,0.011936,57963.0,57962.0,0.60130842]
[1725503152279,0.011936,57963.0,57962.0,0.31291077]
[1725503152280,0.003936,57963.0,57962.0,0.31291077]
[1725503152542,0.003936,57963.0,57962.0,0.31391077]
[1725503153032,0.003936,57963.0,57962.0,0.21824456]
[1725503153033,0.366235,57963.0,57962.0,0.21824456]
[1725503153733,0.363235,57963.0,57962.0,0.21824456]
[1725503156528,0.727768,57963.0,57962.0,0.02984456]
[1725503156735,0.969301,57963.0,57962.0,0.002632]
[1725503156987,0.727768,57963.0,57962.0,0.01427966]
[1725503157421,0.727768,57963.0,57962.0,0.03760471]
[1725503157646,0.727768,57963.0,57962.0,0.01427966]
[1725503157867,0.727768,57963.0,57962.0,0.03760471]
[1725503161319,0.221702,57963.0,57962.0,0.03760471]
[1725503161533,0.221702,57963.0,57962.0,0.09637966]
[1725503161961,0.221702,57963.0,57962.0,0.11970471]
[1725503162175,0.221702,57963.0,57962.0,0.22860471]
[1725503162836,0.221702,57963.0,57962.0,0.34937271]
[1725503162837,0.100936,57963.0,57962.0,0.34937271]
[1725503163547,0.100936,57963.0,57962.0,0.59090971]
[1725503163998,0.100936,57963.0,57962.0,0.34937271]
[1725503164210,0.000936,57963.0,57962.0,0.34937271]
[1725503164870,0.1,57966.0,57964.0,0.1085]
[1725503165082,0.12076,57966.0,57965.0,0.12343047]
[1725503165323,0.12076,57966.0,57965.0,0.14673963]
[1725503166192,0.12376,57966.0,57965.0,0.14673963]
[1725503166429,0.12076,57966.0,57965.0,0.14673963]
[1725503166874,0.22376,57966.0,57965.0,0.14673963]
[1725503167087,0.22676,57966.0,57965.0,0.14673963]
[1725503167317,0.22676,57966.0,57965.0,0.25723963]
[1725503167548,0.22376,57966.0,57965.0,0.25723963]
[1725503167795,0.22676,57966.0,57965.0,0.25723963]
[1725503169152,0.46828,57966.0,57965.0,0.25723963]
[1725503169625,0.46828,57966.0,57965.0,0.05893963]
[1725503169626,1.2213572,57966.0,57965.0,0.05893963]
[1725503169844,1.2213572,57966.0,57965.0,0.02330916]
[1725503170097,0.603832,57963.0,57962.0,0.01327966]
[1725503171841,0.603832,57963.0,57962.0,0.01427966]
[1725503176248,0.845365,57963.0,57962.0,0.01427966]
[1725503176493,1.209898,57963.0,57962.0,0.002632]
[1725503176716,1.311898,57963.0,57962.0,0.002632]
[1725503176925,1.394698,57963.0,57962.0,0.002632]
[1725503177768,1.401698,57963.0,57962.0,0.002632]
[1725503178241,1.405698,57963.0,57962.0,0.002632]
[1725503178459,1.220898,57963.0,57962.0,0.002632]
[1725503178678,1.5079352,57963.0,57962.0,0.003632]
[1725503179100,1.5087512,57963.0,57962.0,0.003632]
[1725503189639,1.55546943,57963.0,57962.0,0.003632]
[1725503190080,1.63836943,57963.0,57962.0,0.003632]
[1725503191186,1.88190243,57963.0,57962.0,0.003632]
[1725503191408,2.06269049,57963.0,57962.0,0.003632]
[1725503192559,2.30422349,57963.0,57962.0,0.003632]
[1725503192779,2.3312843,57963.0,57962.0,0.003632]
[1725503193443,2.3242843,57963.0,57962.0,0.002632]
[1725503193682,2.3242843,57963.0,57955.0,0.001632]
[1725503193683,1.531791,57956.0,57955.0,0.001632]
[1725503193899,1.97141626,57956.0,57955.0,0.001632]
[1725503194120,2.01813449,57956.0,57955.0,0.001632]
[1725503194335,2.065198,57956.0,57955.0,0.001632]
[1725503194987,1.956417,57956.0,57955.0,0.001632]
[1725503195213,1.942417,57956.0,57955.0,0.001632]
[1725503195673,2.30476,57956.0,57955.0,1e-06]
[1725503195917,2.5747972,57956.0,57955.0,1e-06]
[1725503196142,2.31876,57956.0,57955.0,1e-06]
[1725503196436,2.5887972,57956.0,57955.0,1e-06]
[1725503196643,2.5887972,57956.0,57952.0,1.6e-07]
[1725503196644,2.2252114,57953.0,57952.0,1.6e-07]
[1725503196872,0.8248,57947.0,57945.0,0.00163]
[1725503197095,0.63401,57946.0,57945.0,1e-06]
[1725503197315,1.83204423,57946.0,57945.0,1e-06]
[1725503197603,1.92870137,57946.0,57945.0,1e-06]
[1725503198904,1.94270137,57946.0,57945.0,1e-06]
[1725503200019,1.97012552,57946.0,57945.0,1e-06]
[1725503201130,1.97012552,57946.0,57931.0,0.00164]
[1725503201131,0.15081,57942.0,57931.0,0.00164]
[1725503201386,1.83085349,57942.0,57931.0,0.00164]
[1725503201604,1.93085349,57942.0,57931.0,0.00164]
[1725503202501,1.95885349,57942.0,57931.0,0.00164]
[1725503202701,1.94485349,57942.0,57931.0,0.00164]
[1725503202911,1.93085349,57942.0,57931.0,0.00164]
[1725503203120,1.95885349,57942.0,57931.0,0.00164]
[1725503204253,1.94485349,57942.0,57931.0,0.00164]
[1725503204459,1.93085349,57942.0,57931.0,0.00164]
[1725503204669,1.94485349,57942.0,57931.0,0.00164]
[1725503204908,1.95885349,57942.0,57931.0,0.00164]
[1725503205110,1.94485349,57942.0,57931.0,0.00164]
[1725503205360,1.087479,57932.0,57931.0,0.00164]
[1725503205568,1.4805162,57932.0,57931.0,0.00164]
[1725503207072,1.4805162,57932.0,57931.0,0.19434]
[1725503207734,1.5597552,57932.0,57931.0,0.19434]
[1725503208161,1.3080932,57932.0,57931.0,0.19434]
[1725503208377,0.786394,57932.0,57931.0,0.19434]
[1725503208589,0.786394,57932.0,57931.0,0.213974]
[1725503208590,0.717155,57932.0,57931.0,0.213974]
[1725503209029,0.711155,57932.0,57931.0,0.23746329]
[1725503209243,0.704155,57932.0,57931.0,0.213974]
[1725503209449,0.74622465,57932.0,57931.0,0.215974]
[1725503209679,0.719155,57932.0,57931.0,0.215974]
[1725503209901,0.73856719,57932.0,57931.0,0.215974]
[1725503211239,0.72356719,57932.0,57931.0,0.215974]
[1725503211486,0.4397429,57932.0,57931.0,0.215974]
[1725503211763,0.4477429,57932.0,57931.0,0.215974]
[1725503211959,0.6814049,57932.0,57931.0,0.215974]
[1725503212164,0.1980809,57932.0,57931.0,0.215974]
[1725503212381,0.3397429,57932.0,57931.0,0.215974]
[1725503212587,0.4397429,57932.0,57931.0,0.215974]
[1725503212826,0.4397429,57932.0,57931.0,0.216083]
[1725503213309,0.4397429,57932.0,57931.0,0.23957229]
[1725503213522,0.6814049,57932.0,57931.0,0.23957229]
[1725503213963,0.6814049,57932.0,57931.0,0.216083]
[1725503215720,0.99278513,57932.0,57931.0,0.194449]
[1725503215934,0.97313725,57932.0,57931.0,0.194449]
[1725503216597,0.87505635,57932.0,57931.0,0.194449]
[1725503216818,0.99588735,57932.0,57931.0,0.194449]
[1725503217075,0.99588735,57932.0,57931.0,0.2140939]
[1725503217736,0.75522535,57932.0,57931.0,0.2140939]
[1725503217959,0.73222535,57932.0,57931.0,0.2140939]
[1725503218196,0.73222535,57932.0,57931.0,0.2160939]
[1725503218638,0.73122535,57932.0,57931.0,0.2160939]
[1725503219089,0.48956335,57932.0,57931.0,0.2160939]
[1725503219513,0.48956335,57932.0,57931.0,0.23436334]
[1725503219941,0.48956335,57932.0,57931.0,0.2160939]
[1725503220357,0.704155,57932.0,57931.0,0.2140939]
[1725503220573,0.462493,57932.0,57931.0,0.2140939]
[1725503221208,0.704155,57932.0,57931.0,0.2140939]
[1725503222287,0.704155,57932.0,57931.0,0.194449]
[1725503223400,0.704155,57932.0,57931.0,0.001749]
[1725503223622,1.06212329,57932.0,57931.0,0.001749]
[1725503223848,1.0891947,57932.0,57931.0,0.001749]
[1725503224939,1.0931947,57932.0,57931.0,0.001749]
[1725503225169,1.04660664,57932.0,57931.0,0.0208039]
[1725503225607,0.99988841,57932.0,57931.0,0.0208039]
[1725503226226,0.99988841,57932.0,57931.0,0.001749]
[1725503226643,1.4262567,57932.0,57931.0,0.001749]
[1725503227531,1.4242567,57932.0,57931.0,0.001749]
[1725503228186,1.4262567,57932.0,57931.0,0.001749]
[1725503228402,1.4362567,57932.0,57931.0,0.001749]
[1725503228622,1.4342567,57932.0,57931.0,0.001749]
[1725503228841,1.4432567,57932.0,57931.0,0.001749]
[1725503230807,1.31513847,57932.0,57931.0,0.001749]
[1725503231477,1.26855041,57932.0,57931.0,0.001749]
[1725503232133,1.241479,57932.0,57931.0,0.001749]
[1725503232853,1.242295,57932.0,57931.0,0.001749]
[1725503233508,1.37138306,57932.0,57931.0,0.001749]
[1725503233731,1.52940129,57932.0,57931.0,0.001749]
[1725503233985,1.55647601,57932.0,57931.0,0.001749]
[1725503235412,1.44517601,57932.0,57931.0,0.001749]
[1725503235650,1.42417601,57932.0,57931.0,0.001749]
[1725503236114,1.43817601,57932.0,57931.0,0.001749]
[1725503237621,1.43717601,57932.0,57931.0,0.001749]
[1725503237831,1.45117601,57932.0,57931.0,0.001749]
[1725503238070,1.43817601,57932.0,57931.0,0.001749]
[1725503238520,1.45117601,57932.0,57931.0,0.001749]
[1725503239457,1.45117601,57932.0,57931.0,1.201749]
[1725503239682,1.45117601,57932.0,57931.0,1.22001844]
[1725503241107,1.32208795,57932.0,57931.0,1.34202028]
[1725503241327,1.16536972,57932.0,57931.0,1.32301844]
[1725503241597,0.90070772,57932.0,57931.0,1.41361844]
[1725503241832,0.873633,57932.0,57931.0,1.41361844]
[1725503243026,0.873633,57932.0,57931.0,1.46151389]
[1725503243261,0.996633,57932.0,57931.0,1.46151389]
[1725503244872,0.7820427,57932.0,57931.0,1.46151389]
[1725503245117,0.7590427,57932.0,57931.0,1.46151389]
[1725503245808,0.7460427,57932.0,57931.0,1.46151389]
[1725503246515,0.1418877,57932.0,57931.0,1.46351389]
[1725503246767,0.379309,57932.0,57931.0,1.46351389]
[1725503247236,0.365309,57932.0,57931.0,1.46351389]
[1725503247463,0.367309,57932.0,57931.0,1.46351389]
[1725503247947,0.465309,57932.0,57931.0,1.46351389]
[1725503248640,0.002816,57932.0,57931.0,1.58434689]
[1725503248865,0.002816,57932.0,57931.0,1.82601289]
[1725503249380,0.002816,57932.0,57931.0,1.8777584]
[1725503250049,0.002816,57932.0,57931.0,2.1194244]
[1725503250271,0.000816,57932.0,57931.0,2.11941523]
[1725503250497,0.001816,57932.0,57931.0,2.11941523]
[1725503250982,0.001816,57932.0,57931.0,1.82601289]
[1725503251204,0.001816,57932.0,57931.0,2.14516328]
[1725503251422,0.002816,57932.0,57931.0,1.82701289]
[1725503252085,0.002816,57932.0,57931.0,1.87872449]
[1725503253888,0.002816,57932.0,57931.0,1.82701289]
[1725503254106,0.002816,57932.0,57931.0,1.87872449]
[1725503254573,0.002816,57932.0,57931.0,1.82701289]
[1725503255259,0.002816,57932.0,57931.0,2.06867889]
[1725503255709,0.002816,57932.0,57931.0,2.12039049]
[1725503255932,0.002816,57932.0,57931.0,1.82701289]
[1725503256375,0.002816,57932.0,57931.0,2.06867889]
[1725503256615,0.002816,57932.0,57931.0,1.82701289]
[1725503257094,0.002816,57932.0,57931.0,2.06867889]
[1725503257946,0.002816,57932.0,57931.0,1.82701289]
[1725503258876,0.002816,57932.0,57931.0,2.06867889]
[1725503259778,0.241616,57943.0,57931.0,2.06867889]
[1725503259779,0.483232,57943.0,57942.0,0.002]
[1725503260025,0.60404,57943.0,57942.0,0.1995]
[1725503261629,0.60404,57943.0,57942.0,0.2015]
[1725503261849,0.70404,57943.0,57942.0,0.2015]
[1725503262076,0.462424,57943.0,57942.0,0.2015]
[1725503262349,0.462424,57943.0,57942.0,0.22165]
[1725503262601,0.70404,57943.0,57942.0,0.22165]
[1725503262826,0.462424,57943.0,57942.0,0.22165]
[1725503264407,0.70404,57943.0,57942.0,0.22165]
[1725503264634,0.462424,57943.0,57942.0,0.2398741]
[1725503264860,0.70404,57943.0,57942.0,1.4398741]
[1725503265319,0.462424,57943.0,57942.0,1.4398741]
[1725503265994,0.70404,57943.0,57942.0,1.4398741]
[1725503267392,0.462424,57943.0,57942.0,1.4398741]
[1725503267615,0.70404,57943.0,57942.0,1.4398741]
[1725503269047,0.704856,57943.0,57942.0,1.4398741]
[1725503269955,0.46324,57943.0,57942.0,1.4398741]
[1725503270616,0.704856,57943.0,57942.0,1.4398741]
[1725503271043,0.704856,57943.0,57942.0,1.4378741]
[1725503271307,0.704856,57943.0,57942.0,1.2202241]
[1725503274035,1.060072,57943.0,57942.0,1.2202241]
[1725503274263,1.301688,57943.0,57942.0,1.2202241]
[1725503274727,1.301688,57943.0,57942.0,1.2182241]
[1725503275199,1.304688,57943.0,57942.0,1.2182241]
[1725503276330,1.304688,57943.0,57942.0,1.34004651]
[1725503276575,1.063072,57943.0,57942.0,1.34004651]
[1725503276853,1.17416719,57943.0,57942.0,1.34004651]
[1725503277070,1.16816719,57943.0,57942.0,1.34004651]
[1725503277526,1.19616719,57943.0,57942.0,1.34004651]
[1725503277752,1.18216719,57943.0,57942.0,1.34004651]
[1725503277978,1.17716719,57943.0,57942.0,1.34004651]
[1725503278196,1.18516719,57943.0,57942.0,1.34004651]
[1725503278652,1.09456719,57943.0,57942.0,1.34004651]
[1725503279610,1.07156719,57943.0,57942.0,1.34004651]
[1725503281002,1.09456719,57943.0,57942.0,1.34004651]
[1725503284648,0.97375919,57943.0,57942.0,1.34004651]
[1725503285515,1.09456719,57943.0,57942.0,1.34004651]
[1725503285749,1.09456719,57943.0,57942.0,1.32182241]
[1725503286191,1.09456719,57943.0,57942.0,1.34004651]
[1725503286680,0.64892251,57943.0,57942.0,1.43584651]
[1725503286888,0.621856,57943.0,57942.0,1.54994651]
[1725503287767,0.121624,57943.0,57942.0,1.54994651]
[1725503288012,0.221624,57943.0,57942.0,1.54994651]
[1725503288227,0.236624,57943.0,57942.0,1.54994651]
[1725503288653,0.47124,57943.0,57942.0,1.54994651]
[1725503288865,0.46324,57943.0,57942.0,1.54994651]
[1725503289080,0.221624,57943.0,57942.0,1.54994651]
[1725503290629,0.221624,57943.0,57942.0,1.55194651]
[1725503291267,0.100816,57943.0,57942.0,1.67275651]
[1725503291478,0.000816,57943.0,57942.0,1.67275651]
[1725503291691,0.100816,57943.0,57942.0,1.67275651]
[1725503292367,0.100816,57943.0,57942.0,1.55194651]
[1725503292578,0.100816,57943.0,57942.0,1.67275651]
[1725503292794,0.000816,57943.0,57942.0,1.67275651]
[1725503293286,0.000816,57943.0,57942.0,1.55194651]
[1725503293739,0.121624,57943.0,57942.0,1.55194651]
[1725503293954,0.46324,57943.0,57942.0,1.55194651]
[1725503295081,0.241616,57943.0,57942.0,1.55194651]
[1725503295307,0.362424,57943.0,57942.0,1.55194651]
[1725503295531,0.120808,57943.0,57942.0,1.55194651]
[1725503296435,0.120807,57944.0,57943.0,0.0908]
[1725503296641,0.362419,57944.0,57943.0,0.25283275]
[1725503296860,0.362419,57944.0,57943.0,0.27105273]
[1725503297087,0.462419,57944.0,57943.0,0.27105273]
[1725503297803,0.1,57944.0,57943.0,0.38065273]
[1725503298019,0.1,57945.0,57943.0,0.50146073]
[1725503298230,0.1,57945.0,57944.0,0.17756026]
[1725503298456,0.1,57946.0,57945.0,0.002]
[1725503298673,0.220802,57946.0,57945.0,0.002]
[1725503298889,0.220802,57946.0,57945.0,0.02021174]
[1725503299102,0.220802,57946.0,57945.0,0.17689949]
[1725503299325,0.70401,57946.0,57945.0,0.17689949]
[1725503300982,0.70601,57946.0,57945.0,0.17689949]
[1725503301311,0.70801,57946.0,57945.0,0.17689949]
[1725503301535,0.70401,57946.0,57945.0,0.17689949]
[1725503301755,0.70401,57946.0,57945.0,0.17889949]
[1725503303061,0.70401,57946.0,57945.0,0.17789949]
[1725503303285,0.70401,57946.0,57945.0,0.17889949]
[1725503305101,0.54392423,57946.0,57945.0,0.17889949]
[1725503306036,0.362406,57946.0,57945.0,0.17889949]
[1725503306929,0.60401,57946.0,57945.0,0.17889949]
[1725503307158,0.70401,57946.0,57945.0,0.17889949]
[1725503307411,0.704826,57946.0,57945.0,0.17889949]
[1725503307668,0.704826,57946.0,57945.0,0.27279949]
[1725503307892,0.73188967,57946.0,57945.0,0.27279949]
[1725503308109,0.704826,57946.0,57945.0,0.27279949]
[1725503309017,0.704826,57946.0,57945.0,0.27479949]
[1725503310155,0.8129166,57946.0,57945.0,0.27479949]
[1725503310376,0.221618,57946.0,57945.0,0.27479949]
[1725503310594,0.221618,57946.0,57945.0,0.38599949]
[1725503310595,0.463222,57946.0,57945.0,0.38599949]
[1725503310822,0.000816,57946.0,57945.0,0.50680349]
[1725503311031,0.000816,57946.0,57945.0,0.99001949]
[1725503311245,0.000816,57946.0,57945.0,1.30730237]
[1725503311481,0.000816,57946.0,57945.0,1.61477535]
[1725503311682,0.000816,57946.0,57945.0,1.61277535]
[1725503311888,0.000816,57946.0,57945.0,1.61477418]
[1725503312100,0.000816,57946.0,57945.0,1.63287515]
[1725503312306,0.000816,57946.0,57945.0,1.61477418]
[1725503312535,0.000816,57946.0,57945.0,1.69238503]
[1725503312765,0.000816,57946.0,57945.0,1.61377418]
[1725503312971,0.001816,57946.0,57945.0,1.61377418]
[1725503313197,0.001816,57946.0,57945.0,1.71729002]
[1725503313403,0.001816,57946.0,57945.0,1.61377418]
[1725503313611,0.001816,57946.0,57945.0,1.71720996]
[1725503313862,0.000816,57946.0,57945.0,1.71620996]
[1725503314071,0.000816,57946.0,57945.0,1.71720996]
[1725503314072,0.001816,57946.0,57945.0,1.71720996]
[1725503314493,0.001816,57946.0,57945.0,1.61377418]
[1725503314711,0.002816,57946.0,57945.0,1.86738218]
[1725503314924,0.002816,57946.0,57945.0,1.88035542]
[1725503315193,0.001816,57946.0,57945.0,1.86538218]
[1725503315446,0.002816,57946.0,57945.0,1.86738218]
[1725503315909,0.002816,57946.0,57945.0,1.88035444]
[1725503316368,0.002816,57946.0,57945.0,1.86738218]
[1725503316597,0.000816,57963.0,57962.0,0.809242]
[1725503316833,0.000816,57963.0,57962.0,0.6506292]
[1725503317062,0.000816,57963.0,57962.0,0.91030506]
[1725503317282,0.120747,57973.0,57972.0,0.002]
[1725503317728,0.120747,57973.0,57972.0,0.02009768]
[1725503317961,0.120747,57973.0,57972.0,0.002]
[1725503318184,0.39083111,57973.0,57972.0,0.01187]
[1725503318406,0.39083111,57973.0,57972.0,0.02996768]
[1725503318630,0.39983111,57973.0,57972.0,0.02996768]
[1725503319339,0.40783111,57973.0,57972.0,0.02996768]
[1725503319570,0.40783111,57973.0,57972.0,0.11866768]
[1725503319571,0.137747,57973.0,57972.0,0.11866768]
[1725503319797,0.137747,57973.0,57972.0,0.12066768]
[1725503322101,0.129747,57973.0,57972.0,0.12066768]
[1725503322340,0.132747,57973.0,57972.0,0.12066768]
[1725503322563,0.123747,57973.0,57972.0,0.10257]
[1725503322775,0.126747,57973.0,57972.0,0.12066768]
[1725503323278,0.006,57973.0,57972.0,0.12066768]
[1725503323733,0.006816,57973.0,57972.0,0.12066768]
[1725503324172,0.003816,57973.0,57972.0,0.12066768]
[1725503324386,0.003816,57973.0,57972.0,0.12466768]
[1725503325050,0.121561,57973.0,57972.0,0.12466768]
[1725503325487,0.122561,57973.0,57972.0,0.12966768]
[1725503326378,0.222561,57973.0,57972.0,0.12966768]
[1725503326820,0.222561,57973.0,57972.0,0.11779768]
[1725503327059,0.705543,57973.0,57972.0,0.02709768]
[1725503327501,0.705543,57973.0,57972.0,0.009]
[1725503327924,0.705543,57973.0,57972.0,0.011]
[1725503328821,0.704543,57973.0,57972.0,0.006]
[1725503329036,0.705543,57973.0,57972.0,0.006]
[1725503329272,0.464052,57973.0,57972.0,0.006]
[1725503329538,0.100816,57973.0,57972.0,0.2131]
[1725503329749,0.100816,57973.0,57972.0,0.83441]
[1725503329971,0.100816,57973.0,57972.0,0.85550768]
[1725503330184,0.100816,57973.0,57972.0,0.85150768]
[1725503330627,0.000816,57973.0,57972.0,0.85350768]
[1725503330929,0.000816,57973.0,57972.0,0.97225468]
[1725503331110,0.001,57973.0,57972.0,0.97525468]
[1725503331336,0.001,57973.0,57972.0,0.97225468]
[1725503331557,0.120741,57976.0,57975.0,0.002]
[1725503331774,0.120741,57976.0,57975.0,0.117311]
[1725503332212,0.2027108,57979.0,57978.0,0.002]
[1725503332213,0.01332649,57979.0,57978.0,0.002]
[1725503332436,0.01332649,57979.0,57978.0,0.0977]
[1725503332661,0.120731,57980.0,57979.0,0.002]
[1725503332897,0.341461,57981.0,57980.0,0.002]
[1725503332898,0.220729,57981.0,57980.0,0.002]
[1725503333140,0.1,57981.0,57980.0,0.240531]
[1725503333366,0.36295,57990.0,57989.0,0.002]
[1725503333598,0.12153,57990.0,57989.0,0.0977]
[1725503333821,0.12153,57990.0,57989.0,0.11925]
[1725503334051,0.12153,57990.0,57989.0,0.13953118]
[1725503334274,0.00082,57990.0,57989.0,0.25624318]
[1725503334513,0.00082,57990.0,57989.0,0.50111672]
[1725503334788,0.00082,57990.0,57989.0,0.74254172]
[1725503335000,0.00082,57990.0,57989.0,0.25969172]
[1725503335001,0.00982,57990.0,57989.0,0.25969172]
[1725503335254,0.00982,57990.0,57989.0,0.25324318]
[1725503335255,0.00082,57990.0,57989.0,0.25324318]
[1725503335726,0.00082,57990.0,57989.0,0.25669171]
[1725503336188,0.00182,57990.0,57989.0,0.26369171]
[1725503336651,0.01082,57990.0,57989.0,0.26469171]
[1725503336897,0.00182,57990.0,57989.0,0.26369171]
[1725503337392,0.00282,57990.0,57989.0,0.27369171]
[1725503337627,0.00282,57990.0,57989.0,0.51511671]
[1725503338962,0.00282,57990.0,57989.0,0.27369171]
[1725503339406,0.00282,57990.0,57989.0,0.14953118]
[1725503339619,0.00282,57990.0,57989.0,0.27024318]
[1725503342696,0.00282,57990.0,57989.0,0.62901661]
[1725503342914,0.00282,57990.0,57989.0,0.87044161]
[1725503343130,0.00282,57990.0,57989.0,1.11186661]
[1725503343342,0.00082,57999.0,57989.0,1.11186661]
[1725503343343,0.00082,57999.0,57998.0,0.36208]
[1725503343554,0.00082,57999.0,57998.0,0.56968]
[1725503343809,0.00082,57999.0,57998.0,0.58799874]
[1725503344253,0.00082,57999.0,57998.0,0.34661174]
[1725503344480,0.00082,57999.0,57998.0,0.35005962]
[1725503344706,0.00082,57999.0,57998.0,0.40920548]
[1725503345558,0.00082,57999.0,57998.0,0.41020548]
[1725503346214,0.00082,57999.0,57998.0,0.28951248]
[1725503347329,0.00182,57999.0,57998.0,0.29451248]
[1725503347548,0.00182,57999.0,57998.0,0.2920646]
[1725503347970,0.00182,57999.0,57998.0,0.2910646]
[1725503348391,0.00282,57999.0,57998.0,0.2970646]
[1725503348611,0.00282,57999.0,57998.0,0.8970646]
[1725503350613,0.606277,57999.0,57998.0,0.6894646]
[1725503351978,0.84766,57999.0,57998.0,0.63031874]
[1725503352879,1.34916123,57999.0,57998.0,0.63031874]
[1725503353100,1.47216123,57999.0,57998.0,0.63031874]
[1725503353801,1.47116123,57999.0,57998.0,0.62431874]
[1725503354279,1.47616123,57999.0,57998.0,0.62431874]
[1725503354722,1.47516123,57999.0,57998.0,0.61831874]
[1725503354940,1.48016123,57999.0,57998.0,0.61831874]
[1725503356283,1.72154423,57999.0,57998.0,0.61831874]
[1725503358083,0.24143,57988.0,57975.0,0.64890515]
[1725503358306,0.120739,57976.0,57975.0,0.64890515]
[1725503358533,0.362218,57976.0,57975.0,0.64890515]
[1725503358771,0.362218,57976.0,57975.0,0.1224]
[1725503359476,0.363218,57976.0,57975.0,0.1274]
[1725503359698,0.363218,57976.0,57975.0,0.21488278]
[1725503361486,0.364218,57976.0,57975.0,0.21988278]
[1725503362831,0.362218,57976.0,57975.0,0.21151278]
[1725503363048,0.363218,57976.0,57975.0,0.21651278]
[1725503364356,0.364218,57976.0,57975.0,0.22351278]
[1725503365021,0.39126532,57976.0,57975.0,0.22351278]
[1725503365740,0.39126532,57976.0,57975.0,0.24308291]
[1725503365953,0.364218,57976.0,57975.0,0.24308291]
[1725503367060,0.364218,57976.0,57975.0,0.15560013]
[1725503367485,0.96998111,57976.0,57975.0,0.03320013]
[1725503367928,1.21146011,57976.0,57975.0,0.01363]
[1725503369056,0.605697,57976.0,57975.0,0.01363]
[1725503369588,0.847176,57976.0,57975.0,0.01363]
[1725503369779,0.605697,57976.0,57975.0,0.036266]
[1725503370203,0.605697,57976.0,57975.0,0.05583613]
[1725503370417,0.605697,57976.0,57975.0,0.036266]
[1725503372467,0.605697,57976.0,57975.0,0.01363]
[1725503373123,0.605697,57976.0,57975.0,0.03320013]
[1725503373339,0.605697,57976.0,57975.0,0.01363]
[1725503373625,0.605697,57976.0,57975.0,0.03320013]
[1725503376349,0.847176,57976.0,57975.0,0.03320013]
[1725503377034,0.605697,57976.0,57975.0,0.04833314]
[1725503377518,0.605697,57976.0,57975.0,0.14673314]
[1725503378185,0.364218,57976.0,57975.0,0.14673314]
[1725503378413,0.122739,57976.0,57975.0,0.14673314]
[1725503378905,0.364218,57976.0,57975.0,0.14673314]
[1725503380031,0.122739,57976.0,57975.0,0.14673314]
[1725503380662,0.002,57976.0,57975.0,0.26903314]
[1725503382369,0.002,57976.0,57975.0,0.87618963]
[1725503382656,0.002,57976.0,57975.0,1.14282425]
[1725503383328,0.001,57976.0,57975.0,1.13782425]
[1725503383544,0.001,57976.0,57975.0,0.86774014]
[1725503383757,0.120722,57985.0,57981.0,0.2162]
[1725503383979,0.120722,57985.0,57982.0,0.0578395]
[1725503384193,0.120722,57985.0,57982.0,0.07737722]
[1725503385699,0.120722,57985.0,57982.0,0.07937722]
[1725503386765,0.120722,57985.0,57982.0,0.08037722]
[1725503388492,0.120723,57984.0,57982.0,0.08037722]
[1725503388706,0.120723,57984.0,57983.0,0.04173072]
[1725503389173,0.120723,57984.0,57983.0,0.06126381]
[1725503390551,0.362168,57984.0,57983.0,0.06426381]
[1725503390797,0.120723,57984.0,57983.0,0.06426381]
[1725503391028,0.120723,57984.0,57983.0,0.04473072]
[1725503391274,0.120723,57984.0,57983.0,0.06426381]
[1725503392696,0.120723,57984.0,57983.0,0.06726381]
[1725503393847,0.362168,57984.0,57983.0,0.06726381]
[1725503395504,0.603613,57984.0,57983.0,0.02553309]
[1725503395724,0.120723,57984.0,57983.0,0.02553309]
[1725503395941,0.000815,57985.0,57983.0,0.223]
[1725503396155,0.000815,57985.0,57983.0,0.24253309]
[1725503396388,0.121535,57985.0,57984.0,0.02459821]
[1725503396621,0.221535,57985.0,57984.0,0.02459821]
[1725503396846,0.221535,57985.0,57984.0,0.04412667]
[1725503397554,0.2485788,57985.0,57984.0,0.04412667]
[1725503398031,0.221535,57985.0,57984.0,0.04412667]
[1725503398690,0.221535,57985.0,57984.0,0.04612667]
[1725503398908,0.221535,57985.0,57984.0,0.04812667]
[1725503399802,0.462976,57985.0,57984.0,0.04812667]
[1725503400019,0.704417,57985.0,57984.0,0.04812667]
[1725503400247,0.462976,57985.0,57984.0,0.04812667]
[1725503402968,0.221535,57985.0,57984.0,0.04812667]
[1725503403221,0.462976,57985.0,57984.0,0.04812667]
[1725503403680,0.221535,57985.0,57984.0,0.27362667]
[1725503404132,0.462976,57985.0,57984.0,0.27362667]